bitfinex/quotes_SOLUSD_20240601
["timestamp","ask_amount","ask_price","bid_price","bid_amount"]
[1717202152329,0.5848272,166.45,166.44,36.42]
[1717202152530,0.5848272,166.45,166.44,5.89]
[1717202153154,0.5848272,166.45,166.44,0.17]
[1717202153452,0.5848272,166.45,166.44,5.72]
[1717202154032,0.5848272,166.45,166.44,0.17]
[1717202155850,0.5848272,166.45,166.43,0.34]
[1717202156259,0.5848272,166.45,166.41,36.08]
[1717202156260,0.5848272,166.45,166.44,0.17]
[1717202156433,0.5848272,166.45,166.42,0.34]
[1717202160044,0.5848272,166.45,166.43,5.55]
[1717202160248,0.5848272,166.45,166.44,0.17]
[1717202160962,0.5848272,166.45,166.44,5.72]
[1717202162050,0.5848272,166.45,166.44,5.89]
[1717202162569,0.5848272,166.45,166.44,41.97]
[1717202162749,0.5848272,166.45,166.44,47.9785]
[1717202163144,0.5848272,166.45,166.44,67.9785]
[1717202163766,0.5848272,166.45,166.44,127.9785]
[1717202165369,0.5848272,166.45,166.44,107.9785]
[1717202165662,0.5848272,166.45,166.44,127.9785]
[1717202166164,0.5848272,166.45,166.43,36.08]
[1717202166658,0.5848272,166.45,166.44,5.55]
[1717202168646,0.5848272,166.45,166.44,5.72]
[1717202168955,0.5848272,166.45,166.44,5.89]
[1717202171171,0.5848272,166.45,166.44,0.17]
[1717202171366,0.5848272,166.45,166.41,36.08]
[1717202171572,0.5848272,166.45,166.44,5.55]
[1717202172068,0.5848272,166.45,166.42,0.34]
[1717202172249,0.5848272,166.45,166.43,5.55]
[1717202173276,0.5848272,166.45,166.41,36.08]
[1717202173467,0.5848272,166.45,166.4,66.014]
[1717202173669,0.5848272,166.45,166.41,5.72]
[1717202175580,0.5848272,166.45,166.42,5.55]
[1717202177186,6.7131272,166.45,166.4,0.17]
[1717202177483,6.1283,166.44,166.4,5.89]
[1717202178476,6.1283,166.44,166.4,0.34]
[1717202178662,6.1283,166.44,166.4,0.17]
[1717202178867,6.1283,166.44,166.4,5.55]
[1717202179781,0.5848272,166.45,166.4,5.55]
[1717202179987,0.5848272,166.45,166.4,11.564]
[1717202180181,0.5848272,166.45,166.4,5.55]
[1717202181467,6.7026272,166.45,166.4,5.55]
[1717202183086,6.7026272,166.45,166.39,0.34]
[1717202183268,6.7026272,166.45,166.4,5.55]
[1717202184761,6.7026272,166.45,166.4,11.564]
[1717202184967,6.7026272,166.45,166.4,5.55]
[1717202186189,6.7026272,166.45,166.39,0.17]
[1717202186488,6.1178,166.44,166.39,5.55]
[1717202187490,12.2526272,166.45,166.39,5.55]
[1717202188175,12.2526272,166.45,166.38,0.17]
[1717202188486,5.55,166.44,166.38,5.55]
[1717202188693,5.55,166.44,166.37,36.08]
[1717202188868,5.55,166.44,166.38,5.55]
[1717202189690,5.55,166.44,166.36,0.34]
[1717202189863,5.55,166.44,166.38,5.55]
[1717202190592,8.9255272,166.45,166.38,5.55]
[1717202190778,5.55,166.43,166.36,0.34]
[1717202190986,5.55,166.43,166.37,5.55]
[1717202191297,5.55,166.43,166.34,96.08]
[1717202191484,6.7026272,166.45,166.35,5.55]
[1717202191688,5.55,166.41,166.35,5.55]
[1717202191887,5.55,166.42,166.36,5.55]
[1717202194303,8.9255272,166.45,166.35,0.34]
[1717202194608,5.55,166.44,166.38,5.55]
[1717202195091,6.7026272,166.45,166.39,5.55]
[1717202195269,6.7026272,166.45,166.4,5.55]
[1717202195471,12.2526272,166.45,166.4,5.55]
[1717202195974,12.2526272,166.45,166.39,5.55]
[1717202197303,14.4755272,166.45,166.36,96.08]
[1717202197487,14.4755272,166.45,166.39,5.55]
[1717202198078,6.7026272,166.45,166.39,5.55]
[1717202198601,12.2526272,166.45,166.39,5.55]
[1717202199078,14.4754272,166.45,166.39,5.55]
[1717202202485,14.4754272,166.45,166.37,0.34]
[1717202202693,5.55,166.44,166.38,5.55]
[1717202204390,6.7026272,166.45,166.37,0.34]
[1717202204706,5.55,166.43,166.37,5.55]
[1717202204873,5.55,166.43,166.34,36.08]
[1717202205073,5.55,166.43,166.37,5.55]
[1717202205505,2.223,166.44,166.36,5.55]
[1717202205712,5.55,166.42,166.36,5.55]
[1717202206276,5.55,166.42,166.34,36.08]
[1717202206817,5.55,166.42,166.36,5.55]
[1717202206986,6.1348272,166.42,166.36,5.55]
[1717202209522,0.5848272,166.42,166.34,96.08]
[1717202209690,0.5848272,166.42,166.38,5.55]
[1717202210090,0.5848272,166.42,166.36,96.08]
[1717202210091,0.5848272,166.42,166.39,5.55]
[1717202210388,0.5848272,166.42,166.36,36.08]
[1717202210588,0.5848272,166.42,166.39,5.55]
[1717202214419,0.5848272,166.42,166.37,0.34]
[1717202214796,0.5848272,166.42,166.39,5.55]
[1717202217527,0.5848272,166.42,166.37,0.34]
[1717202218033,0.5848272,166.42,166.39,5.55]
[1717202220505,0.5848272,166.42,166.41,5.55]
[1717202220913,0.5848272,166.42,166.41,5.72]
[1717202223030,0.5848272,166.42,166.38,36.08]
[1717202223216,0.5848272,166.42,166.39,5.72]
[1717202223417,0.5848272,166.42,166.39,5.55]
[1717202224136,0.5848272,166.42,166.38,5.55]
[1717202225032,0.5848272,166.42,166.38,11.564]
[1717202225331,0.5848272,166.42,166.38,5.55]
[1717202226835,0.5848272,166.42,166.4,5.55]
[1717202227826,0.5848272,166.42,166.41,0.17]
[1717202228027,0.5848272,166.42,166.41,5.72]
[1717202229728,0.5848272,166.42,166.39,96.25]
[1717202229914,0.5848272,166.42,166.4,5.89]
[1717202230118,0.5848272,166.42,166.4,5.72]
[1717202230932,0.5848272,166.42,166.4,11.734]
[1717202231138,0.5848272,166.42,166.41,5.55]
[1717202232438,0.5848272,166.42,166.41,101.8]
[1717202232640,0.5848272,166.42,166.41,101.97]
[1717202235719,0.5848272,166.42,166.41,96.42]
[1717202235921,0.5848272,166.42,166.41,101.97]
[1717202236337,0.5848272,166.42,166.41,107.984]
[1717202236541,0.5848272,166.42,166.41,101.97]
[1717202238148,0.5848272,166.42,166.41,108.2807]
[1717202238451,0.5848272,166.42,166.41,128.2807]
[1717202245356,0.5848272,166.42,166.41,162.9142]
[1717202245555,22.6295116,166.54,166.47,60.0]
[1717202245749,22.6295116,166.54,166.48,5.72]
[1717202245750,28.1795116,166.54,166.48,5.72]
[1717202246467,11.9085116,166.54,166.48,5.72]
[1717202247668,11.9085116,166.54,166.48,0.17]
[1717202247867,11.9085116,166.54,166.48,0.34]
[1717202248180,5.55,166.53,166.47,5.72]
[1717202248369,5.55,166.53,166.48,0.17]
[1717202248571,5.55,166.53,166.47,5.72]
[1717202249375,5.55,166.53,166.47,0.17]
[1717202249552,5.55,166.53,166.47,5.72]
[1717202250443,5.55,166.53,166.47,0.17]
[1717202250745,11.5632,166.52,166.47,5.72]
[1717202251157,11.5632,166.52,166.47,0.17]
[1717202252564,6.0132,166.52,166.47,5.72]
[1717202253755,11.5632,166.53,166.47,5.72]
[1717202254474,5.55,166.51,166.45,41.63]
[1717202255174,5.55,166.5,166.44,5.55]
[1717202255373,5.55,166.51,166.42,36.08]
[1717202255674,5.55,166.51,166.45,5.55]
[1717202256187,5.55,166.5,166.44,5.55]
[1717202256570,5.55,166.5,166.42,36.08]
[1717202256872,5.55,166.5,166.43,0.34]
[1717202257062,5.55,166.5,166.44,5.55]
[1717202257877,5.55,166.5,166.43,0.34]
[1717202258051,5.55,166.5,166.44,5.55]
[1717202258250,2.222,166.52,166.45,5.55]
[1717202258472,5.55,166.51,166.44,5.55]
[1717202258656,5.55,166.5,166.44,5.55]
[1717202259055,5.55,166.51,166.45,5.55]
[1717202259772,6.2132,166.52,166.46,0.17]
[1717202259970,11.7632,166.52,166.46,5.72]
[1717202260178,6.2132,166.52,166.47,5.55]
[1717202261679,6.2132,166.52,166.48,5.55]
[1717202263973,6.2132,166.52,166.47,5.55]
[1717202265977,6.2132,166.52,166.46,0.17]
[1717202266167,11.7632,166.52,166.46,5.55]
[1717202266366,11.7632,166.52,166.47,0.17]
[1717202266677,6.2132,166.52,166.47,5.72]
[1717202266984,2.5670116,166.54,166.48,5.55]
[1717202267161,8.1170116,166.54,166.48,5.55]
[1717202268664,8.1170116,166.54,166.49,1.21775083]
[1717202268863,14.3302116,166.54,166.49,1.21775083]
[1717202269679,2.5670116,166.54,166.49,1.21775083]
[1717202269869,0.3453116,166.54,166.49,6.76775083]
[1717202270182,0.3453116,166.54,166.5,6.76767768]
[1717202270570,0.3453116,166.54,166.5,1.21767768]
[1717202270986,0.3453116,166.54,166.5,6.76767768]
[1717202276192,0.3453116,166.54,166.5,1.21767768]
[1717202277063,0.3453116,166.54,166.51,5.72]
[1717202277260,0.3453116,166.54,166.52,1.21753142]
[1717202281994,0.3453116,166.54,166.53,5.89]
[1717202282169,0.3453116,166.54,166.53,43.18745862]
[1717202282674,0.3453116,166.54,166.53,41.97]
[1717202283998,0.3453116,166.54,166.53,0.34]
[1717202286581,0.3453116,166.54,166.53,36.42]
[1717202286898,0.3453116,166.54,166.53,41.97]
[1717202289398,0.3453116,166.54,166.53,48.3354]
[1717202290583,0.3453116,166.54,166.53,68.3354]
[1717202291588,0.3453116,166.54,166.53,62.7854]
[1717202291781,0.3453116,166.54,166.53,68.3354]
[1717202292708,0.3453116,166.54,166.53,61.97]
[1717202294003,0.3453116,166.54,166.53,68.3354]
[1717202294299,0.3453116,166.54,166.53,74.3444]
[1717202295097,0.3453116,166.54,166.53,68.3354]
[1717202297081,0.3453116,166.54,166.53,86.4154]
[1717202299799,0.3453116,166.54,166.53,80.8654]
[1717202300104,0.3453116,166.54,166.53,86.4154]
[1717202300478,0.3453116,166.54,166.53,146.4154]
[1717202300679,0.3453116,166.54,166.53,116.42]
[1717202300883,0.3453116,166.54,166.53,116.25]
[1717202301089,0.3453116,166.54,166.53,121.8]
[1717202301304,0.3453116,166.54,166.53,121.63]
[1717202302398,0.3453116,166.54,166.53,101.63]
[1717202302603,0.3453116,166.54,166.53,121.97]
[1717202304009,0.3453116,166.54,166.53,0.34]
[1717202304207,0.3453116,166.54,166.53,5.89]
[1717202304599,0.3453116,166.54,166.53,5.72]
[1717202304804,0.3453116,166.54,166.53,0.17]
[1717202304995,0.3453116,166.54,166.53,5.72]
[1717202305991,0.3453116,166.54,166.53,5.89]
[1717202316118,0.3453116,166.54,166.53,0.34]
[1717202316507,0.3453116,166.54,166.53,5.89]
[1717202318209,0.3453116,166.54,166.5,36.08]
[1717202318521,0.3453116,166.54,166.51,5.89]
[1717202318901,0.3453116,166.54,166.5,36.08]
[1717202319509,0.3453116,166.54,166.51,5.55]
[1717202320318,0.3453116,166.54,166.5,36.25]
[1717202320530,0.3453116,166.54,166.51,0.17]
[1717202321814,0.3453116,166.54,166.5,5.55]
[1717202324112,6.4438116,166.54,166.49,5.72]
[1717202324730,11.9938116,166.54,166.49,5.72]
[1717202325140,11.9938116,166.54,166.49,5.55]
[1717202325638,11.9938116,166.54,166.48,5.55]
[1717202325841,11.9938116,166.54,166.47,36.22]
[1717202326040,5.55,166.53,166.48,5.72]
[1717202326243,11.6485,166.53,166.48,5.72]
[1717202326732,11.6485,166.53,166.48,5.55]
[1717202327117,11.6485,166.53,166.46,42.229]
[1717202327346,11.6485,166.53,166.47,0.34]
[1717202327515,11.6485,166.53,166.47,5.89]
[1717202329041,5.55,166.52,166.47,0.34]
[1717202329215,5.55,166.52,166.47,0.17]
[1717202331143,5.55,166.52,166.47,5.72]
[1717202331347,6.0985,166.53,166.45,36.05]
[1717202331348,5.55,166.51,166.45,36.05]
[1717202331527,8.3204,166.53,166.45,5.55]
[1717202331718,0.3453116,166.54,166.5,5.55]
[1717202334430,0.3453116,166.54,166.51,5.55]
[1717202334749,0.3453116,166.54,166.52,5.55]
[1717202337319,0.3453116,166.54,166.49,60.0]
[1717202337523,0.3453116,166.54,166.5,36.22]
[1717202337741,0.3453116,166.54,166.51,0.17]
[1717202339433,0.3453116,166.54,166.51,96.22]
[1717202339633,0.3453116,166.54,166.52,0.17]
[1717202341056,0.3453116,166.54,166.51,0.34]
[1717202342149,0.3453116,166.54,166.51,36.39]
[1717202343250,0.3453116,166.54,166.51,0.34]
[1717202343431,0.3453116,166.54,166.5,0.34]
[1717202344726,0.3453116,166.54,166.5,36.39]
[1717202344945,0.3453116,166.54,166.53,5.55]
[1717202350030,0.3453116,166.54,166.53,5.89]
[1717202355436,0.3453116,166.54,166.53,5.72]
[1717202355755,0.3453116,166.54,166.5,96.05]
[1717202355953,0.3453116,166.54,166.53,5.55]
[1717202356460,0.3453116,166.54,166.49,36.05]
[1717202356646,0.3453116,166.54,166.53,5.55]
[1717202356849,0.3453116,166.54,166.48,36.05]
[1717202357263,0.3453116,166.54,166.51,5.55]
[1717202364068,23.0151116,166.54,166.44,96.05]
[1717202364270,23.0151116,166.54,166.45,5.55]
[1717202364271,7.7721,166.51,166.45,5.55]
[1717202364469,2.2219,166.52,166.46,5.55]
[1717202364660,2.2218,166.53,166.46,5.55]
[1717202365161,2.2219,166.52,166.46,5.55]
[1717202365363,6.5678,166.49,166.46,5.55]
[1717202365870,6.5678,166.49,166.4,82.2]
[1717202365871,44.34,166.5,166.41,8.97027128]
[1717202366082,5.55,166.48,166.41,8.97027128]
[1717202366255,6.5678,166.46,166.41,5.55]
[1717202367065,6.5678,166.45,166.41,5.55]
[1717202367367,30.0,166.43,166.4,5.55]
[1717202370254,30.0,166.43,166.37,36.05]
[1717202370453,30.0,166.43,166.4,5.55]
[1717202371371,6.5678,166.45,166.4,5.55]
[1717202371978,28.2198,166.46,166.38,0.34]
[1717202372178,5.55,166.45,166.38,0.17]
[1717202372374,6.5678,166.44,166.4,5.55]
[1717202373161,6.5678,166.43,166.36,8.97455797]
[1717202373480,6.5678,166.43,166.39,5.55]
[1717202373677,6.5678,166.43,166.35,45.02455797]
[1717202373880,6.5678,166.43,166.39,5.55]
[1717202376873,6.5678,166.43,166.35,36.05]
[1717202377079,6.5678,166.43,166.39,5.55]
[1717202377873,24.8924,166.47,166.39,5.55]
[1717202378074,5.55,166.46,166.4,5.55]
[1717202380094,7.7727,166.46,166.4,5.55]
[1717202380888,5.55,166.45,166.39,5.55]
[1717202382899,5.55,166.44,166.36,0.34]
[1717202383111,5.55,166.44,166.38,5.55]
[1717202383397,5.55,166.44,166.36,0.34]
[1717202383571,5.55,166.44,166.38,5.55]
[1717202385275,2.2229,166.45,166.38,5.55]
[1717202392598,6.5678,166.47,166.39,5.55]
[1717202392798,6.5678,166.47,166.42,5.55]
[1717202394004,8.7904,166.47,166.42,5.55]
[1717202394391,5.55,166.46,166.41,5.55]
[1717202394704,14.3404,166.47,166.41,5.55]
[1717202396301,8.7904,166.47,166.41,5.55]
[1717202396512,7.7724,166.49,166.43,5.55]
[1717202396704,5.55,166.48,166.42,5.55]
[1717202396900,7.7725,166.48,166.42,5.55]
[1717202397379,2.2225,166.48,166.43,5.55]
[1717202397580,8.6883,166.48,166.43,5.55]
[1717202398074,14.2383,166.48,166.43,5.55]
[1717202398279,2.2226,166.47,166.43,5.55]
[1717202398495,2.2226,166.47,166.42,5.55]
[1717202400299,6.4658,166.48,166.43,5.55]
[1717202400488,2.2224,166.49,166.43,5.55]
[1717202400692,2.2225,166.48,166.43,5.55]
[1717202401001,2.2225,166.48,166.4,0.17]
[1717202401002,7.7725,166.48,166.42,5.55]
[1717202401689,5.55,166.48,166.42,41.6]
[1717202401887,6.1069,166.52,166.43,36.39]
[1717202402095,13.8789,166.52,166.47,5.55]
[1717202402290,8.3289,166.52,166.47,5.55]
[1717202402494,2.222,166.52,166.48,5.55]
[1717202402893,2.222,166.52,166.47,5.55]
[1717202405983,2.222,166.52,166.44,96.05]
[1717202406201,7.772,166.52,166.47,5.55]
[1717202406402,2.2221,166.51,166.47,5.55]
[1717202407022,7.772,166.52,166.47,5.55]
[1717202407615,2.222,166.52,166.47,5.55]
[1717202416630,2.222,166.52,166.45,0.34]
[1717202416917,2.222,166.52,166.47,5.55]
[1717202418699,7.772,166.52,166.46,5.55]
[1717202420035,0.3453116,166.54,166.45,0.34]
[1717202420036,2.2221,166.51,166.45,0.34]
[1717202420315,7.7722,166.5,166.43,36.05]
[1717202420517,5.55,166.49,166.44,5.55]
[1717202420900,5.55,166.49,166.43,36.05]
[1717202421210,5.55,166.48,166.41,36.05]
[1717202421405,5.55,166.48,166.42,5.55]
[1717202421619,7.7725,166.48,166.43,5.55]
[1717202422225,7.7725,166.48,166.41,36.05]
[1717202422226,5.55,166.48,166.42,5.55]
[1717202422522,5.55,166.48,166.43,5.55]
[1717202423304,5.55,166.48,166.41,36.05]
[1717202423524,5.55,166.48,166.42,5.55]
[1717202423898,7.7724,166.49,166.43,5.55]
[1717202424322,7.7724,166.49,166.4,96.39]
[1717202424617,7.7724,166.49,166.43,5.55]
[1717202426215,5.55,166.49,166.43,5.55]
[1717202426518,7.7723,166.49,166.43,5.55]
[1717202427421,5.55,166.49,166.43,5.55]
[1717202429325,7.7723,166.49,166.43,5.55]
[1717202429621,7.7723,166.49,166.41,0.17]
[1717202429921,7.7723,166.49,166.43,5.55]
[1717202430513,2.2223,166.49,166.42,96.05]
[1717202430820,6.5901,166.51,166.42,96.05]
[1717202430821,14.3622,166.51,166.45,5.55]
[1717202431006,8.8122,166.51,166.46,5.55]
[1717202431216,7.7719,166.52,166.46,5.55]
[1717202431703,2.2221,166.51,166.46,5.55]
[1717202432731,7.772,166.52,166.46,5.55]
[1717202434614,5.55,166.52,166.46,5.55]
[1717202434818,2.2218,166.53,166.47,5.55]
[1717202434819,7.7718,166.53,166.47,5.55]
[1717202435017,2.2218,166.53,166.47,5.55]
[1717202435211,2.5669116,166.54,166.48,5.55]
[1717202435411,8.1169116,166.54,166.48,5.55]
[1717202435830,2.2218,166.53,166.48,5.55]
[1717202438929,2.5670116,166.54,166.49,5.55]
[1717202439139,2.5670116,166.54,166.46,96.05]
[1717202439345,2.5670116,166.54,166.49,5.55]
[1717202440256,2.5670116,166.54,166.5,5.55]
[1717202451964,0.3453116,166.54,166.5,5.55]
[1717202452752,0.3453116,166.54,166.51,5.55]
[1717202453254,0.3453116,166.54,166.52,1.1304578]
[1717202453960,0.3453116,166.54,166.51,5.55]
[1717202455349,0.3453116,166.54,166.49,0.17]
[1717202455562,0.3453116,166.54,166.51,5.55]
[1717202458066,0.3453116,166.54,166.49,0.17]
[1717202458252,0.3453116,166.54,166.51,5.55]
[1717202460262,0.3453116,166.54,166.52,5.55]
[1717202460956,0.3453116,166.54,166.53,5.55]
[1717202461139,0.3453116,166.54,166.53,5.72]
[1717202461950,0.3453116,166.54,166.53,41.94]
[1717202469239,0.3453116,166.54,166.53,101.94]
[1717202469546,0.3453116,166.54,166.53,108.1051]
[1717202470248,0.3453116,166.54,166.53,168.2839]
[1717202470664,0.3453116,166.54,166.53,162.7339]
[1717202470862,0.3453116,166.54,166.53,168.2839]
[1717202472851,0.3453116,166.54,166.53,162.7339]
[1717202473057,0.3453116,166.54,166.53,190.4839]
[1717202477179,0.8115417,166.58,166.57,96.05]
[1717202477373,0.8115417,166.58,166.57,101.94]
[1717202482284,0.8115417,166.58,166.57,96.39]
[1717202482490,0.8115417,166.58,166.57,101.94]
[1717202483064,0.8115417,166.58,166.57,126.4291]
[1717202484361,0.8115417,166.58,166.57,146.4291]
[1717202484677,0.8115417,166.58,166.57,146.8881]
[1717202484993,0.8115417,166.58,166.57,146.4291]
[1717202485281,0.8115417,166.58,166.57,152.4381]
[1717202485470,2.2198,166.68,166.63,60.0]
[1717202485672,8.8317,166.68,166.64,5.72]
[1717202486471,8.8317,166.68,166.64,0.17]
[1717202486670,8.8317,166.68,166.64,5.89]
[1717202488588,8.8317,166.68,166.64,0.34]
[1717202488775,8.8317,166.68,166.63,5.89]
[1717202488971,2.2198,166.68,166.63,5.72]
[1717202489177,6.6119,166.67,166.63,5.72]
[1717202491093,2.2198,166.68,166.63,5.72]
[1717202491474,8.8317,166.68,166.63,5.72]
[1717202491789,8.8317,166.68,166.63,41.77]
[1717202491991,8.8317,166.68,166.64,5.55]
[1717202494582,8.8317,166.68,166.63,0.17]
[1717202494782,8.8317,166.68,166.64,5.55]
[1717202495593,2.22,166.67,166.63,0.17]
[1717202495898,2.22,166.67,166.63,5.72]
[1717202496276,8.8317,166.68,166.63,5.72]
[1717202496480,2.2197,166.69,166.65,5.55]
[1717202496987,2.2195,166.7,166.65,65.55]
[1717202497194,2.2195,166.7,166.66,0.17]
[1717202497401,2.2197,166.69,166.66,0.17]
[1717202498402,2.2198,166.68,166.64,0.17]
[1717202498592,8.8316,166.69,166.64,5.55]
[1717202498983,2.2197,166.69,166.64,5.55]
[1717202501891,2.2195,166.7,166.64,5.55]
[1717202502111,7.7695,166.7,166.64,5.55]
[1717202502606,2.2195,166.7,166.64,5.55]
[1717202502780,7.7695,166.7,166.65,5.55]
[1717202503101,2.2196,166.69,166.65,5.55]
[1717202503478,2.2196,166.7,166.66,0.17]
[1717202503694,4.4387,166.72,166.66,0.17]
[1717202503695,2.2194,166.71,166.66,5.72]
[1717202503903,7.7694,166.71,166.66,0.17]
[1717202504086,7.7695,166.7,166.66,0.17]
[1717202504292,2.2197,166.69,166.66,0.17]
[1717202504599,7.7695,166.7,166.66,0.17]
[1717202507389,5.55,166.7,166.63,96.22]
[1717202507588,5.55,166.7,166.64,5.55]
[1717202507993,2.2197,166.69,166.64,5.55]
[1717202509890,2.2197,166.69,166.63,96.39]
[1717202510205,2.2197,166.69,166.63,0.34]
[1717202510700,2.2197,166.69,166.63,0.17]
[1717202511109,2.2198,166.68,166.63,0.17]
[1717202511781,22.2,166.72,166.63,0.17]
[1717202511782,2.2197,166.69,166.63,0.17]
[1717202511998,7.7697,166.69,166.63,5.55]
[1717202512483,2.2198,166.68,166.63,5.55]
[1717202513507,2.2197,166.69,166.63,5.55]
[1717202513720,7.7697,166.69,166.63,5.55]
[1717202514006,7.7697,166.69,166.62,0.34]
[1717202514189,7.7697,166.69,166.63,5.55]
[1717202514399,5.55,166.69,166.63,5.55]
[1717202514786,7.7695,166.7,166.64,5.55]
[1717202515413,7.7696,166.7,166.64,5.55]
[1717202515613,7.7697,166.69,166.63,5.55]
[1717202515991,7.7697,166.69,166.62,96.39]
[1717202515992,5.55,166.68,166.62,0.34]
[1717202516190,5.55,166.68,166.62,5.89]
[1717202516719,7.7698,166.68,166.62,0.34]
[1717202517016,5.55,166.67,166.62,0.17]
[1717202517697,5.55,166.67,166.61,5.55]
[1717202517904,5.55,166.67,166.6,0.17]
[1717202518102,7.7698,166.68,166.61,5.55]
[1717202518410,7.7698,166.68,166.62,5.72]
[1717202518810,5.55,166.68,166.62,5.72]
[1717202519007,4.4388,166.71,166.59,36.05]
[1717202519198,5.55,166.66,166.61,5.55]
[1717202520598,5.55,166.67,166.61,5.55]
[1717202522221,5.55,166.67,166.59,96.05]
[1717202522528,5.55,166.67,166.61,5.55]
[1717202523128,11.0972,166.71,166.61,5.55]
[1717202523334,5.55,166.67,166.61,5.55]
[1717202523819,7.7699,166.67,166.61,5.55]
[1717202524499,7.7699,166.67,166.6,0.34]
[1717202524799,7.77,166.66,166.59,0.34]
[1717202525004,7.77,166.66,166.6,5.55]
[1717202525005,5.55,166.65,166.6,5.55]
[1717202525215,5.55,166.65,166.59,5.89]
[1717202525602,5.55,166.65,166.59,0.17]
[1717202525794,5.55,166.63,166.56,36.05]
[1717202525996,5.55,166.62,166.57,5.55]
[1717202528097,7.7706,166.62,166.56,5.72]
[1717202528297,5.55,166.6,166.53,44.98273353]
[1717202528706,7.7708,166.6,166.54,5.55]
[1717202528896,6.6129,166.61,166.54,396.45]
[1717202529103,5.55,166.62,166.56,5.55]
[1717202529407,2.2205,166.63,166.56,5.55]
[1717202529408,2.2203,166.64,166.58,5.55]
[1717202529608,5.55,166.63,166.58,5.55]
[1717202530502,7.7706,166.62,166.57,0.34]
[1717202530821,7.7706,166.62,166.57,0.17]
[1717202531704,5.55,166.62,166.57,0.17]
[1717202531916,5.55,166.62,166.57,5.72]
[1717202532122,5.55,166.63,166.57,5.72]
[1717202535223,7.7705,166.63,166.57,0.17]
[1717202535423,7.7705,166.63,166.57,5.55]
[1717202539210,2.2208,166.6,166.55,5.55]
[1717202539415,5.55,166.6,166.54,36.05]
[1717202539639,5.55,166.6,166.55,5.55]
[1717202540424,5.55,166.6,166.54,60.0]
[1717202540730,5.55,166.6,166.55,5.55]
[1717202541133,5.55,166.61,166.55,5.55]
[1717202544128,2.2207,166.61,166.55,41.6]
[1717202544327,2.2207,166.61,166.56,5.89]
[1717202544916,5.55,166.62,166.56,5.89]
[1717202544917,7.7706,166.62,166.56,5.89]
[1717202546034,2.2206,166.62,166.56,41.94]
[1717202546222,5.55,166.63,166.57,5.55]
[1717202546427,7.7705,166.63,166.58,0.17]
[1717202547332,2.2206,166.62,166.57,0.17]
[1717202547512,2.2206,166.62,166.57,5.72]
[1717202547713,2.2206,166.62,166.57,0.17]
[1717202547912,7.7706,166.62,166.57,0.17]
[1717202548134,2.2206,166.62,166.57,5.72]
[1717202549138,7.7706,166.62,166.57,0.17]
[1717202549513,6.545,166.65,166.57,101.77]
[1717202549725,7.7703,166.64,166.58,5.72]
[1717202549925,2.2203,166.64,166.58,5.72]